[Event "Titled Tuesday Blitz September 20 Late 2022"]
[White "Fernandez De La Vara, Arnaldo"]
[Black "Muradli, Mahammad"]
[WhiteFideId "3518388"]
[BlackFideId "13409301"]
[WhiteElo "2387"]
[BlackElo "2611"]
[Result "0-1"]
[Round "07"]
[TimeControl "180+1"]
[Date "2022.09.20"]
[WhiteClock "0:00:13"]
[BlackClock "0:00:27"]

1. Nf3 {[%clk 0:03:00]}  Nf6 {[%clk 0:02:57]} 2. b3 {[%clk 0:03:01]}  g6 {[%clk 0:02:56]} 3. Bb2 {[%clk 0:03:02]}  Bg7 {[%clk 0:02:57]} 4. g3 {[%clk 0:03:02]}  b6 {[%clk 0:02:57]} 5. Bg2 {[%clk 0:03:02]}  Bb7 {[%clk 0:02:58]} 6. O-O {[%clk 0:03:03]}  c5 {[%clk 0:02:57]} 7. c4 {[%clk 0:03:02]}  O-O {[%clk 0:02:56]} 8. Nc3 {[%clk 0:03:02]}  d6 {[%clk 0:02:56]} 9. d4 {[%clk 0:02:38]}  cxd4 {[%clk 0:02:57]} 10. Nxd4 {[%clk 0:02:39]}  Bxg2 {[%clk 0:02:55]} 11. Kxg2 {[%clk 0:02:40]}  Qc8 {[%clk 0:02:56]} 12. Nf3 {[%clk 0:02:09]}  Qb7 {[%clk 0:02:54]} 13. Qd2 {[%clk 0:02:05]}  Nbd7 {[%clk 0:02:54]} 14. Kg1 {[%clk 0:02:03]}  a6 {[%clk 0:02:54]} 15. a4 {[%clk 0:01:27]}  Rac8 {[%clk 0:02:53]} 16. Rab1 {[%clk 0:01:23]}  Nc5 {[%clk 0:02:53]} 17. Ba1 {[%clk 0:01:23]}  Rfd8 {[%clk 0:02:51]} 18. Rfd1 {[%clk 0:01:21]}  h5 {[%clk 0:02:51]} 19. h4 {[%clk 0:01:02]}  Qd7 {[%clk 0:02:22]} 20. Kg2 {[%clk 0:01:02]}  Qf5 {[%clk 0:02:13]} 21. Qg5 {[%clk 0:00:52]}  Qe6 {[%clk 0:02:03]} 22. Nd4 {[%clk 0:00:50]}  Qd7 {[%clk 0:02:03]} 23. Nf3 {[%clk 0:00:50]}  Qb7 {[%clk 0:02:00]} 24. Kg1 {[%clk 0:00:49]}  Rd7 {[%clk 0:01:54]} 25. Nh2 {[%clk 0:00:41]}  Ne6 {[%clk 0:01:37]} 26. Qe3 {[%clk 0:00:41]}  d5 {[%clk 0:01:37]} 27. cxd5 {[%clk 0:00:36]}  Nxd5 {[%clk 0:01:37]} 28. Nxd5 {[%clk 0:00:37]}  Rxd5 {[%clk 0:01:37]} 29. Rxd5 {[%clk 0:00:23]}  Qxd5 {[%clk 0:01:38]} 30. Bxg7 {[%clk 0:00:23]}  Kxg7 {[%clk 0:01:38]} 31. Nf3 {[%clk 0:00:24]}  Rc2 {[%clk 0:01:31]} 32. Kf1 {[%clk 0:00:12]}  b5 {[%clk 0:01:06]} 33. axb5 {[%clk 0:00:13]}  axb5 {[%clk 0:01:06]} 34. Qe5+ {[%clk 0:00:10]}  Qxe5 {[%clk 0:01:06]} 35. Nxe5 {[%clk 0:00:11]}  Nd4 {[%clk 0:01:03]} 36. e3 {[%clk 0:00:11]}  Ne2 {[%clk 0:00:55]} 37. Rd1 {[%clk 0:00:06]}  Nc3 {[%clk 0:00:52]} 38. Rd7 {[%clk 0:00:05]}  Ne4 {[%clk 0:00:42]} 39. Nd3 {[%clk 0:00:05]}  e6 {[%clk 0:00:28]} 40. Kg2 {[%clk 0:00:04]}  Rd2 {[%clk 0:00:27]} 41. Ne5 {[%clk 0:00:01]}  Rxf2+ {[%clk 0:00:26]} 42. Kg1 {[%clk 0:00:02]}  Rf5 {[%clk 0:00:26]} 43. Nc6 {[%clk 0:00:01]}  Nxg3 {[%clk 0:00:26]} 44. Nd4 {[%clk 0:00:02]}  Re5 {[%clk 0:00:24]} 45. Kf2 {[%clk 0:00:02]}  Nf5 {[%clk 0:00:23]} 46. Ke2 {[%clk 0:00:03]}  Rxe3+ {[%clk 0:00:23]} 47. Kd2 {[%clk 0:00:03]}  Re5 {[%clk 0:00:22]} 48. Nf3 {[%clk 0:00:03]}  Rd5+ {[%clk 0:00:22]} 49. Rxd5 {[%clk 0:00:04]}  exd5 {[%clk 0:00:23]} 50. Kc3 {[%clk 0:00:05]}  d4+ {[%clk 0:00:17]} 51. Kb4 {[%clk 0:00:05]}  d3 {[%clk 0:00:18]} 52. Kxb5 {[%clk 0:00:06]}  Nxh4 {[%clk 0:00:18]} 53. Nd2 {[%clk 0:00:07]}  g5 {[%clk 0:00:17]} 54. Kc5 {[%clk 0:00:06]}  g4 {[%clk 0:00:18]} 55. b4 {[%clk 0:00:04]}  Nf3 {[%clk 0:00:17]} 56. b5 {[%clk 0:00:04]}  Nxd2 {[%clk 0:00:17]} 57. b6 {[%clk 0:00:04]}  g3 {[%clk 0:00:17]} 58. b7 {[%clk 0:00:05]}  g2 {[%clk 0:00:18]} 59. b8=Q {[%clk 0:00:05]}  g1=Q+ {[%clk 0:00:19]} 60. Kd5 {[%clk 0:00:04]}  Qg5+ {[%clk 0:00:18]} 61. Kd4 {[%clk 0:00:03]}  Nf3+ {[%clk 0:00:18]} 62. Kxd3 {[%clk 0:00:03]}  Qd5+ {[%clk 0:00:18]} 63. Kc2 {[%clk 0:00:04]}  Qe4+ {[%clk 0:00:18]} 64. Kb3 {[%clk 0:00:02]}  Nd4+ {[%clk 0:00:18]} 65. Kc3 {[%clk 0:00:02]}  Qe3+ {[%clk 0:00:16]} 66. Kc4 {[%clk 0:00:03]}  Ne6 {[%clk 0:00:16]} 67. Qb2+ {[%clk 0:00:03]}  Qd4+ {[%clk 0:00:16]} 68. Qxd4+ {[%clk 0:00:04]}  Nxd4 {[%clk 0:00:17]} 69. Kxd4 {[%clk 0:00:05]}  Kg6 {[%clk 0:00:18]} 70. Ke3 {[%clk 0:00:05]}  Kg5 {[%clk 0:00:19]} 71. Kf3 {[%clk 0:00:06]}  f5 {[%clk 0:00:20]} 72. Kg3 {[%clk 0:00:06]}  f4+ {[%clk 0:00:20]} 73. Kf3 {[%clk 0:00:07]}  Kf5 {[%clk 0:00:21]} 74. Kf2 {[%clk 0:00:08]}  Kg4 {[%clk 0:00:22]} 75. Kg2 {[%clk 0:00:09]}  h4 {[%clk 0:00:23]} 76. Kh2 {[%clk 0:00:10]}  h3 {[%clk 0:00:24]} 77. Kh1 {[%clk 0:00:10]}  Kg3 {[%clk 0:00:24]} 78. Kg1 {[%clk 0:00:10]}  f3 {[%clk 0:00:25]} 79. Kh1 {[%clk 0:00:11]}  Kf2 {[%clk 0:00:25]} 80. Kh2 {[%clk 0:00:11]}  Ke2 {[%clk 0:00:26]} 81. Kg3 {[%clk 0:00:12]}  f2 {[%clk 0:00:26]} 82. Kh2 {[%clk 0:00:12]}  f1=Q {[%clk 0:00:27]} 83. Kg3 {[%clk 0:00:12]}  Qg2+ {[%clk 0:00:27]} 84. Kf4 {[%clk 0:00:13]}  h2 {[%clk 0:00:27]} 0-1


[Site "https://www.chess.com"]

[Event "Titled Tuesday Blitz September 20 Late 2022"]
[White "Goncalves, Davi Sulzbacher"]
[Black "Nasuta, Grzegorz"]
[WhiteFideId "2154510"]
[BlackFideId "1141686"]
[WhiteElo "2107"]
[BlackElo "2354"]
[Result "0-1"]
[Round "07"]
[TimeControl "180+1"]
[Date "2022.09.20"]
[WhiteClock "0:00:20"]
[BlackClock "0:00:13"]

1. Nf3 {[%clk 0:03:00]}  Nf6 {[%clk 0:02:58]} 2. g3 {[%clk 0:03:00]}  c5 {[%clk 0:02:58]} 3. Bg2 {[%clk 0:03:01]}  d5 {[%clk 0:02:58]} 4. O-O {[%clk 0:03:00]}  e6 {[%clk 0:02:58]} 5. b3 {[%clk 0:02:59]}  Be7 {[%clk 0:02:55]} 6. Bb2 {[%clk 0:02:59]}  O-O {[%clk 0:02:53]} 7. e3 {[%clk 0:02:58]}  Nc6 {[%clk 0:02:54]} 8. d4 {[%clk 0:02:58]}  b6 {[%clk 0:02:54]} 9. Nbd2 {[%clk 0:02:56]}  Bb7 {[%clk 0:02:54]} 10. Ne5 {[%clk 0:02:55]}  Nxe5 {[%clk 0:02:27]} 11. dxe5 {[%clk 0:02:55]}  Nd7 {[%clk 0:02:28]} 12. c4 {[%clk 0:02:44]}  Qc7 {[%clk 0:02:28]} 13. cxd5 {[%clk 0:02:43]}  exd5 {[%clk 0:02:26]} 14. f4 {[%clk 0:02:38]}  Rfd8 {[%clk 0:02:25]} 15. Qh5 {[%clk 0:02:33]}  Nf8 {[%clk 0:02:20]} 16. f5 {[%clk 0:02:18]}  f6 {[%clk 0:02:07]} 17. exf6 {[%clk 0:02:10]}  Bxf6 {[%clk 0:02:08]} 18. Bxf6 {[%clk 0:02:09]}  gxf6 {[%clk 0:02:09]} 19. Rf4 {[%clk 0:02:09]}  Rd7 {[%clk 0:01:59]} 20. Raf1 {[%clk 0:01:51]}  Rg7 {[%clk 0:01:55]} 21. Qh6 {[%clk 0:01:23]}  Qe5 {[%clk 0:01:55]} 22. e4 {[%clk 0:00:44]}  dxe4 {[%clk 0:01:16]} 23. Nxe4 {[%clk 0:00:38]}  Bxe4 {[%clk 0:01:14]} 24. Rxe4 {[%clk 0:00:38]}  Qd6 {[%clk 0:00:58]} 25. Bf3 {[%clk 0:00:07]}  Rd8 {[%clk 0:00:58]} 26. Kg2 {[%clk 0:00:07]}  Qd2+ {[%clk 0:00:57]} 27. Qxd2 {[%clk 0:00:07]}  Rxd2+ {[%clk 0:00:58]} 28. Rf2 {[%clk 0:00:08]}  Rgd7 {[%clk 0:00:56]} 29. Ree2 {[%clk 0:00:07]}  R2d4 {[%clk 0:00:51]} 30. g4 {[%clk 0:00:07]}  h6 {[%clk 0:00:50]} 31. Kg3 {[%clk 0:00:07]}  Kf7 {[%clk 0:00:48]} 32. Kh4 {[%clk 0:00:07]}  Nh7 {[%clk 0:00:40]} 33. Kh5 {[%clk 0:00:06]}  Ng5 {[%clk 0:00:41]} 34. Bg2 {[%clk 0:00:07]}  Kg7 {[%clk 0:00:40]} 35. h4 {[%clk 0:00:07]}  Nf7 {[%clk 0:00:40]} 36. Re6 {[%clk 0:00:04]}  Nd8 {[%clk 0:00:16]} 37. Re8 {[%clk 0:00:03]}  Nf7 {[%clk 0:00:16]} 38. Rfe2 {[%clk 0:00:03]}  Rd2 {[%clk 0:00:16]} 39. R8e7 {[%clk 0:00:02]}  Rxe2 {[%clk 0:00:15]} 40. Rxe2 {[%clk 0:00:02]}  Rc7 {[%clk 0:00:13]} 41. Bd5 {[%clk 0:00:02]}  b5 {[%clk 0:00:12]} 42. Be6 {[%clk 0:00:02]}  c4 {[%clk 0:00:12]} 43. bxc4 {[%clk 0:00:02]}  bxc4 {[%clk 0:00:13]} 44. Rc2 {[%clk 0:00:03]}  c3 {[%clk 0:00:13]} 45. Bb3 {[%clk 0:00:04]}  Ne5 {[%clk 0:00:13]} 46. g5 {[%clk 0:00:04]}  hxg5 {[%clk 0:00:14]} 47. hxg5 {[%clk 0:00:05]}  fxg5 {[%clk 0:00:14]} 48. Kxg5 {[%clk 0:00:06]}  Nf3+ {[%clk 0:00:14]} 49. Kf4 {[%clk 0:00:06]}  Nd4 {[%clk 0:00:14]} 50. Rg2+ {[%clk 0:00:07]}  Kf8 {[%clk 0:00:04]} 51. Rg8+ {[%clk 0:00:07]}  Ke7 {[%clk 0:00:05]} 52. Rg7+ {[%clk 0:00:08]}  Kd6 {[%clk 0:00:05]} 53. Rg6+ {[%clk 0:00:08]}  Kc5 {[%clk 0:00:05]} 54. Ke4 {[%clk 0:00:08]}  Nxb3 {[%clk 0:00:05]} 55. axb3 {[%clk 0:00:08]}  c2 {[%clk 0:00:06]} 56. Rg1 {[%clk 0:00:08]}  Kb4 {[%clk 0:00:06]} 57. Rc1 {[%clk 0:00:08]}  Kxb3 {[%clk 0:00:07]} 58. f6 {[%clk 0:00:09]}  Kb2 {[%clk 0:00:07]} 59. Rf1 {[%clk 0:00:09]}  c1=Q {[%clk 0:00:07]} 60. Rxc1 {[%clk 0:00:10]}  Kxc1 {[%clk 0:00:08]} 61. Kd5 {[%clk 0:00:11]}  a5 {[%clk 0:00:08]} 62. Ke6 {[%clk 0:00:12]}  a4 {[%clk 0:00:09]} 63. Kd6 {[%clk 0:00:12]}  Rf7 {[%clk 0:00:09]} 64. Ke6 {[%clk 0:00:13]}  Rxf6+ {[%clk 0:00:10]} 65. Kd5 {[%clk 0:00:14]}  a3 {[%clk 0:00:10]} 66. Kc4 {[%clk 0:00:15]}  a2 {[%clk 0:00:11]} 67. Kb3 {[%clk 0:00:15]}  a1=Q {[%clk 0:00:12]} 68. Kc4 {[%clk 0:00:16]}  Qe5 {[%clk 0:00:12]} 69. Kd3 {[%clk 0:00:17]}  Rf3+ {[%clk 0:00:12]} 70. Kc4 {[%clk 0:00:18]}  Qe4+ {[%clk 0:00:12]} 71. Kb5 {[%clk 0:00:18]}  Rf5+ {[%clk 0:00:12]} 72. Ka6 {[%clk 0:00:19]}  Qe6+ {[%clk 0:00:12]} 73. Kb7 {[%clk 0:00:20]}  Rf7+ {[%clk 0:00:13]} 0-1


[Site "https://www.chess.com"]

[Event "Titled Tuesday Blitz September 20 Late 2022"]
[White "Leitao, Rafael"]
[Black "Bluebaum, Matthias"]
[WhiteFideId "2101246"]
[BlackFideId "24651516"]
[WhiteElo "2609"]
[BlackElo "2633"]
[Result "0-1"]
[Round "07"]
[TimeControl "180+1"]
[Date "2022.09.20"]
[WhiteClock "0:00:12"]
[BlackClock "0:01:10"]

1. c4 {[%clk 0:03:00]}  e6 {[%clk 0:02:58]} 2. g3 {[%clk 0:03:00]}  d5 {[%clk 0:02:58]} 3. Bg2 {[%clk 0:03:00]}  Nf6 {[%clk 0:02:58]} 4. Nf3 {[%clk 0:03:00]}  dxc4 {[%clk 0:02:58]} 5. Qa4+ {[%clk 0:02:59]}  Bd7 {[%clk 0:02:59]} 6. Qxc4 {[%clk 0:02:59]}  c5 {[%clk 0:03:00]} 7. Ne5 {[%clk 0:02:58]}  Qc8 {[%clk 0:03:00]} 8. Nxd7 {[%clk 0:02:58]}  Qxd7 {[%clk 0:03:01]} 9. O-O {[%clk 0:02:56]}  Nc6 {[%clk 0:03:01]} 10. Qc2 {[%clk 0:02:41]}  Be7 {[%clk 0:02:59]} 11. Nc3 {[%clk 0:02:41]}  O-O {[%clk 0:02:59]} 12. d3 {[%clk 0:02:41]}  Rac8 {[%clk 0:03:00]} 13. Be3 {[%clk 0:02:09]}  Nd4 {[%clk 0:02:59]} 14. Qd2 {[%clk 0:02:01]}  Rfd8 {[%clk 0:02:58]} 15. h3 {[%clk 0:01:59]}  b5 {[%clk 0:02:57]} 16. Rac1 {[%clk 0:01:53]}  h6 {[%clk 0:02:34]} 17. Rfd1 {[%clk 0:01:38]}  Nf5 {[%clk 0:02:28]} 18. Bf4 {[%clk 0:01:33]}  a6 {[%clk 0:02:13]} 19. Ne4 {[%clk 0:01:27]}  Qa7 {[%clk 0:02:06]} 20. g4 {[%clk 0:01:12]}  Nh4 {[%clk 0:01:59]} 21. Bh1 {[%clk 0:01:12]}  c4 {[%clk 0:01:59]} 22. Bxh6 {[%clk 0:01:04]}  gxh6 {[%clk 0:01:49]} 23. Nxf6+ {[%clk 0:00:48]}  Bxf6 {[%clk 0:01:50]} 24. Qxh6 {[%clk 0:00:48]}  Ng6 {[%clk 0:01:50]} 25. Be4 {[%clk 0:00:47]}  Bg7 {[%clk 0:01:46]} 26. Qh5 {[%clk 0:00:46]}  Nf4 {[%clk 0:01:41]} 27. Qh7+ {[%clk 0:00:45]}  Kf8 {[%clk 0:01:41]} 28. Kf1 {[%clk 0:00:24]}  cxd3 {[%clk 0:01:37]} 29. exd3 {[%clk 0:00:25]}  Qd4 {[%clk 0:01:30]} 30. Qh4 {[%clk 0:00:16]}  Qxb2 {[%clk 0:01:10]} 31. Rxc8 {[%clk 0:00:12]}  Qe2+ {[%clk 0:01:10]} 0-1


[Site "https://www.chess.com"]

[Event "Titled Tuesday Blitz September 20 Late 2022"]
[White "Livaic, Leon"]
[Black "Sokolovsky, Yahli"]
[WhiteFideId "14531534"]
[BlackFideId "2820242"]
[WhiteElo "2540"]
[BlackElo "1920"]
[Result "0-1"]
[Round "07"]
[TimeControl "180+1"]
[Date "2022.09.20"]
[WhiteClock "0:00:14"]
[BlackClock "0:01:02"]

1. d4 {[%clk 0:03:00]}  d6 {[%clk 0:02:59]} 2. c4 {[%clk 0:03:01]}  e5 {[%clk 0:02:59]} 3. Nf3 {[%clk 0:02:58]}  e4 {[%clk 0:02:59]} 4. Ng5 {[%clk 0:02:58]}  f5 {[%clk 0:02:57]} 5. Nc3 {[%clk 0:02:57]}  Be7 {[%clk 0:02:57]} 6. Nh3 {[%clk 0:02:57]}  c6 {[%clk 0:02:57]} 7. g3 {[%clk 0:02:56]}  Nf6 {[%clk 0:02:57]} 8. Bg5 {[%clk 0:02:56]}  O-O {[%clk 0:02:51]} 9. Nf4 {[%clk 0:02:54]}  e3 {[%clk 0:02:43]} 10. f3 {[%clk 0:02:26]}  Qb6 {[%clk 0:02:33]} 11. b3 {[%clk 0:02:00]}  Re8 {[%clk 0:02:26]} 12. Ng2 {[%clk 0:01:51]}  Ne4 {[%clk 0:01:57]} 13. Bxe7 {[%clk 0:01:15]}  Nf2 {[%clk 0:01:14]} 14. Qc2 {[%clk 0:01:10]}  Rxe7 {[%clk 0:01:07]} 15. Rg1 {[%clk 0:01:10]}  Qxd4 {[%clk 0:01:08]} 16. Nf4 {[%clk 0:00:40]}  Na6 {[%clk 0:01:08]} 17. a3 {[%clk 0:00:38]}  Nc5 {[%clk 0:01:09]} 18. Rb1 {[%clk 0:00:21]}  a5 {[%clk 0:01:08]} 19. Nh3 {[%clk 0:00:20]}  f4 {[%clk 0:01:02]} 20. Nxf4 {[%clk 0:00:20]}  Bf5 {[%clk 0:01:02]} 21. Qxf5 {[%clk 0:00:14]}  Qd2# {[%clk 0:01:02]} 0-1


[Site "https://www.chess.com"]

[Event "Titled Tuesday Blitz September 20 Late 2022"]
[White "Melkumyan, Hrant"]
[Black "Yanchenko, Roman"]
[WhiteFideId "13302485"]
[BlackFideId "4137329"]
[WhiteElo "2604"]
[BlackElo "2514"]
[Result "1-0"]
[Round "07"]
[TimeControl "180+1"]
[Date "2022.09.20"]
[WhiteClock "0:00:54"]
[BlackClock "0:00:09"]

1. Nf3 {[%clk 0:03:00]}  d5 {[%clk 0:03:00]} 2. e3 {[%clk 0:03:00]}  Nf6 {[%clk 0:03:00]} 3. c4 {[%clk 0:03:00]}  c6 {[%clk 0:03:00]} 4. Nc3 {[%clk 0:03:00]}  g6 {[%clk 0:02:59]} 5. d4 {[%clk 0:03:00]}  Bg7 {[%clk 0:02:59]} 6. Be2 {[%clk 0:03:00]}  O-O {[%clk 0:03:00]} 7. O-O {[%clk 0:03:01]}  a6 {[%clk 0:03:00]} 8. a4 {[%clk 0:02:55]}  Bg4 {[%clk 0:03:00]} 9. h3 {[%clk 0:02:49]}  Bxf3 {[%clk 0:02:59]} 10. Bxf3 {[%clk 0:02:50]}  e6 {[%clk 0:03:00]} 11. Qb3 {[%clk 0:02:47]}  Qc7 {[%clk 0:02:53]} 12. a5 {[%clk 0:02:44]}  Nbd7 {[%clk 0:02:53]} 13. Bd2 {[%clk 0:02:45]}  Rac8 {[%clk 0:02:35]} 14. Rfc1 {[%clk 0:02:44]}  dxc4 {[%clk 0:02:35]} 15. Qxc4 {[%clk 0:02:43]}  e5 {[%clk 0:02:35]} 16. d5 {[%clk 0:02:34]}  cxd5 {[%clk 0:01:49]} 17. Qxc7 {[%clk 0:02:33]}  Rxc7 {[%clk 0:01:49]} 18. Nxd5 {[%clk 0:02:34]}  Rxc1+ {[%clk 0:01:49]} 19. Rxc1 {[%clk 0:02:35]}  e4 {[%clk 0:01:50]} 20. Nxf6+ {[%clk 0:02:28]}  Nxf6 {[%clk 0:01:47]} 21. Be2 {[%clk 0:02:28]}  Nd5 {[%clk 0:01:44]} 22. b4 {[%clk 0:02:23]}  Rd8 {[%clk 0:01:42]} 23. Be1 {[%clk 0:02:22]}  Bf8 {[%clk 0:01:41]} 24. b5 {[%clk 0:02:15]}  axb5 {[%clk 0:01:24]} 25. Bxb5 {[%clk 0:02:16]}  Nb4 {[%clk 0:01:02]} 26. Rb1 {[%clk 0:02:10]}  Nc2 {[%clk 0:00:46]} 27. Bc3 {[%clk 0:01:37]}  Na3 {[%clk 0:00:31]} 28. Rb3 {[%clk 0:01:37]}  Nxb5 {[%clk 0:00:31]} 29. Rxb5 {[%clk 0:01:38]}  Rd7 {[%clk 0:00:28]} 30. g4 {[%clk 0:01:37]}  Rc7 {[%clk 0:00:16]} 31. Bd4 {[%clk 0:01:34]}  Bd6 {[%clk 0:00:12]} 32. Rd5 {[%clk 0:01:29]}  Rc6 {[%clk 0:00:12]} 33. Rb5 {[%clk 0:01:27]}  Rc7 {[%clk 0:00:13]} 34. Kg2 {[%clk 0:01:23]}  Kf8 {[%clk 0:00:12]} 35. Be5 {[%clk 0:01:20]}  Ke7 {[%clk 0:00:10]} 36. Bxd6+ {[%clk 0:01:15]}  Kxd6 {[%clk 0:00:11]} 37. Kg3 {[%clk 0:01:15]}  f6 {[%clk 0:00:07]} 38. Kf4 {[%clk 0:01:12]}  Rc2 {[%clk 0:00:07]} 39. Rb6+ {[%clk 0:01:05]}  Kc5 {[%clk 0:00:07]} 40. Kg3 {[%clk 0:01:00]}  h5 {[%clk 0:00:05]} 41. Rxf6 {[%clk 0:00:57]}  hxg4 {[%clk 0:00:05]} 42. hxg4 {[%clk 0:00:57]}  Kb5 {[%clk 0:00:05]} 43. Rb6+ {[%clk 0:00:54]}  Kxa5 {[%clk 0:00:06]} 44. Rxb7 {[%clk 0:00:55]}  Rc6 {[%clk 0:00:06]} 45. Re7 {[%clk 0:00:54]}  Kb4 {[%clk 0:00:05]} 46. Rxe4+ {[%clk 0:00:54]}  Kc5 {[%clk 0:00:06]} 47. Kf4 {[%clk 0:00:53]}  Rf6+ {[%clk 0:00:06]} 48. Kg3 {[%clk 0:00:53]}  Kd5 {[%clk 0:00:07]} 49. Re8 {[%clk 0:00:54]}  Rf7 {[%clk 0:00:07]} 50. f4 {[%clk 0:00:54]}  Kd6 {[%clk 0:00:07]} 51. g5 {[%clk 0:00:54]}  Rg7 {[%clk 0:00:07]} 52. Re5 {[%clk 0:00:53]}  Ra7 {[%clk 0:00:06]} 53. Kf3 {[%clk 0:00:53]}  Ra1 {[%clk 0:00:06]} 54. Re8 {[%clk 0:00:53]}  Kd7 {[%clk 0:00:07]} 55. Rf8 {[%clk 0:00:52]}  Ra6 {[%clk 0:00:07]} 56. Rf6 {[%clk 0:00:51]}  Rxf6 {[%clk 0:00:07]} 57. gxf6 {[%clk 0:00:52]}  Ke6 {[%clk 0:00:08]} 58. Kg4 {[%clk 0:00:53]}  Kxf6 {[%clk 0:00:08]} 59. e4 {[%clk 0:00:53]}  Kf7 {[%clk 0:00:09]} 60. Kg5 {[%clk 0:00:54]}  Kg7 {[%clk 0:00:09]} 61. e5 {[%clk 0:00:54]} 1-0


[Site "https://www.chess.com"]

[Event "Titled Tuesday Blitz September 20 Late 2022"]
[White "Nakamura, Hikaru"]
[Black "Vasquez Schroeder, Rodrigo"]
[WhiteFideId "2016192"]
[BlackFideId "3400042"]
[WhiteElo "2850"]
[BlackElo "2577"]
[Result "1-0"]
[Round "07"]
[TimeControl "180+1"]
[Date "2022.09.20"]
[WhiteClock "0:00:26"]
[BlackClock "0:00:15"]

1. g3 {[%clk 0:02:56]}  d5 {[%clk 0:02:59]} 2. Bg2 {[%clk 0:02:56]}  c6 {[%clk 0:02:58]} 3. d3 {[%clk 0:02:56]}  Nf6 {[%clk 0:02:56]} 4. Nd2 {[%clk 0:02:57]}  e5 {[%clk 0:02:55]} 5. e4 {[%clk 0:02:55]}  Bd6 {[%clk 0:02:53]} 6. Ngf3 {[%clk 0:02:55]}  O-O {[%clk 0:02:53]} 7. O-O {[%clk 0:02:55]}  Re8 {[%clk 0:02:53]} 8. Re1 {[%clk 0:02:54]}  Nbd7 {[%clk 0:02:51]} 9. b3 {[%clk 0:02:51]}  Qc7 {[%clk 0:02:51]} 10. Bb2 {[%clk 0:02:51]}  b6 {[%clk 0:02:50]} 11. Nh4 {[%clk 0:02:43]}  Bb7 {[%clk 0:02:46]} 12. Nf5 {[%clk 0:02:36]}  Bf8 {[%clk 0:02:46]} 13. Qe2 {[%clk 0:02:25]}  g6 {[%clk 0:02:43]} 14. Ne3 {[%clk 0:02:24]}  dxe4 {[%clk 0:02:37]} 15. dxe4 {[%clk 0:02:23]}  b5 {[%clk 0:02:37]} 16. a4 {[%clk 0:02:06]}  a6 {[%clk 0:02:36]} 17. Ng4 {[%clk 0:01:55]}  Bg7 {[%clk 0:02:26]} 18. Nxf6+ {[%clk 0:01:52]}  Bxf6 {[%clk 0:02:23]} 19. Red1 {[%clk 0:01:50]}  Nc5 {[%clk 0:02:19]} 20. Nf1 {[%clk 0:01:45]}  Ne6 {[%clk 0:02:17]} 21. Ne3 {[%clk 0:01:43]}  Nd4 {[%clk 0:02:14]} 22. Qe1 {[%clk 0:01:40]}  Rad8 {[%clk 0:02:13]} 23. h4 {[%clk 0:01:39]}  h5 {[%clk 0:02:12]} 24. Rd3 {[%clk 0:01:36]}  Bc8 {[%clk 0:02:11]} 25. axb5 {[%clk 0:01:31]}  axb5 {[%clk 0:02:10]} 26. Rad1 {[%clk 0:01:32]}  Be6 {[%clk 0:02:06]} 27. b4 {[%clk 0:01:32]}  Bc8 {[%clk 0:01:55]} 28. c3 {[%clk 0:01:26]}  Ne6 {[%clk 0:01:56]} 29. Rxd8 {[%clk 0:01:22]}  Rxd8 {[%clk 0:01:56]} 30. Ra1 {[%clk 0:01:22]}  Bg7 {[%clk 0:01:48]} 31. Bc1 {[%clk 0:01:18]}  Bb7 {[%clk 0:01:46]} 32. Bh3 {[%clk 0:01:15]}  Bc8 {[%clk 0:01:41]} 33. Kh2 {[%clk 0:01:13]}  Kh7 {[%clk 0:01:28]} 34. Nc2 {[%clk 0:01:07]}  Kg8 {[%clk 0:00:42]} 35. Be3 {[%clk 0:01:07]}  Qe7 {[%clk 0:00:42]} 36. Ra7 {[%clk 0:01:03]}  Rd7 {[%clk 0:00:42]} 37. Ra8 {[%clk 0:01:03]}  Rd8 {[%clk 0:00:43]} 38. Qa1 {[%clk 0:01:00]}  Bd7 {[%clk 0:00:40]} 39. Ra7 {[%clk 0:00:55]}  Qd6 {[%clk 0:00:40]} 40. Ne1 {[%clk 0:00:53]}  Be8 {[%clk 0:00:31]} 41. Nf3 {[%clk 0:00:50]}  Bf6 {[%clk 0:00:30]} 42. Nd2 {[%clk 0:00:37]}  Kg7 {[%clk 0:00:27]} 43. Nb3 {[%clk 0:00:37]}  Rd7 {[%clk 0:00:27]} 44. Ra8 {[%clk 0:00:37]}  Rd8 {[%clk 0:00:27]} 45. Ra7 {[%clk 0:00:37]}  Rd7 {[%clk 0:00:25]} 46. Ra6 {[%clk 0:00:36]}  Rd8 {[%clk 0:00:23]} 47. Na5 {[%clk 0:00:36]}  Nc7 {[%clk 0:00:19]} 48. Nb7 {[%clk 0:00:35]}  Qe7 {[%clk 0:00:15]} 49. Bc5 {[%clk 0:00:26]} 1-0


[Site "https://www.chess.com"]

[Event "Titled Tuesday Blitz September 20 Late 2022"]
[White "Perez Ponsa, Federico"]
[Black "Gubajdullin, Alexei"]
[WhiteFideId "117927"]
[BlackFideId "4141202"]
[WhiteElo "2604"]
[BlackElo "2195"]
[Result "1-0"]
[Round "07"]
[TimeControl "180+1"]
[Date "2022.09.20"]
[WhiteClock "0:02:02"]
[BlackClock "0:00:20"]

1. e4 {[%clk 0:03:00]}  c6 {[%clk 0:02:59]} 2. Nf3 {[%clk 0:03:00]}  d5 {[%clk 0:02:58]} 3. Nc3 {[%clk 0:03:01]}  Bg4 {[%clk 0:02:54]} 4. h3 {[%clk 0:03:01]}  Bxf3 {[%clk 0:02:55]} 5. Qxf3 {[%clk 0:03:02]}  e6 {[%clk 0:02:54]} 6. Be2 {[%clk 0:03:02]}  g6 {[%clk 0:02:54]} 7. O-O {[%clk 0:03:03]}  Bg7 {[%clk 0:02:54]} 8. d4 {[%clk 0:03:03]}  Ne7 {[%clk 0:02:45]} 9. Be3 {[%clk 0:03:03]}  Nd7 {[%clk 0:02:44]} 10. Rad1 {[%clk 0:03:03]}  Qb6 {[%clk 0:02:41]} 11. Bc1 {[%clk 0:02:58]}  O-O {[%clk 0:02:40]} 12. h4 {[%clk 0:02:56]}  Rad8 {[%clk 0:02:31]} 13. h5 {[%clk 0:02:56]}  e5 {[%clk 0:02:23]} 14. h6 {[%clk 0:02:54]}  Bh8 {[%clk 0:02:23]} 15. exd5 {[%clk 0:02:51]}  exd4 {[%clk 0:02:21]} 16. d6 {[%clk 0:02:49]}  Nf5 {[%clk 0:02:18]} 17. Ne4 {[%clk 0:02:49]}  Nc5 {[%clk 0:02:14]} 18. Bg5 {[%clk 0:02:36]}  Nxe4 {[%clk 0:01:56]} 19. Bxd8 {[%clk 0:02:34]}  Rxd8 {[%clk 0:01:52]} 20. Qxe4 {[%clk 0:02:33]}  Nxd6 {[%clk 0:01:44]} 21. Qf4 {[%clk 0:02:33]}  Qxb2 {[%clk 0:01:35]} 22. Rfe1 {[%clk 0:02:33]}  Qxa2 {[%clk 0:00:59]} 23. Qxd6 {[%clk 0:02:13]}  Qa5 {[%clk 0:00:21]} 24. Bc4 {[%clk 0:02:05]}  Rf8 {[%clk 0:00:20]} 25. Bxf7+ {[%clk 0:02:02]} 1-0


[Site "https://www.chess.com"]